Cogmind - Beta 15 *** ADVENTURER MODE // 2025.06.07 @ 01:17:58 Player: tcfire Result: Destroyed by S-43 Plague with Heavy Machine Gun Performance ------------- Evolutions (8) 4000 Regions Visited (16) 3200 Robots Destroyed (45) 225 Value Destroyed (2328) 2328 Prototype IDs (23) 460 Alien Tech Used (0) 0 Bonus (800) 800 TOTAL SCORE: 11013 Bonus ------- Entered DSFs 500 Aligned with FarCom 300 Cogmind --------- Core Integrity 0/1450 Matter 10/300 Energy 43/100 System Corruption 0% Temperature Cool (0) Movement Core (50) Location -2/Research Parts ------- > --- POWER (2) -------- (None) > --- PROPULSION (4) --- (None) > --- UTILITY (14) ----- (None) > --- WEAPON (3) ------- (None) > --- INVENTORY (5) ---- Centrium Leg Enhanced Nova Cannon Linear Accelerator Peak State ------------ > --- POWER ------------ Micro Fission Core Light Antimatter Reactor > --- PROPULSION ------- Flexi-carbon Leg Thunder Leg > --- UTILITY ---------- Advanced Heat Sink Advanced Weight Redist. System Advanced Sensor Array Advanced Signal Interpreter Advanced Terrain Scan Processor Modified TNC Matter Filter Advanced ECM Suite Improved Medium Armor Plating Improved Focal Shield Improved Hacking Suite > --- WEAPON ----------- Matter Neutralizer Mass Driver > --- INVENTORY -------- Neutrino Core Matter Neutralizer Mass Driver [Rating: 89] Favorites ----------- Power Light Ion Engine Engine Light Ion Engine Power Core Neutrino Core Reactor Light Antimatter Reactor Propulsion Improved Titanium Leg Leg Improved Titanium Leg Hover Unit Improved Antigrav System Utility Modified TNC Device Advanced Heat Sink Storage Small Storage Unit Processor Modified TNC Hackware Improved Hacking Suite Protection Improved Medium Armor Plating Weapon Mass Driver Energy Gun Small Laser Energy Cannon Matter Neutralizer Ballistic Gun Assault Rifle Ballistic Cannon Mass Driver Build | -11 -10 -10 -10 -9 -8 -7 -7 -6 -6 -6 -5 -5 -5 -4 -3 -2 ------- Run | Yrd Mat Min Exi Min Mat Fac DSF Fac Low Low Fac Was Fac Fac Res Res Slots Evolved 16 | . . . . . 4 2 . 2 . . 2 . . 2 2 2 Power 1 | . . . . . . . . . . . 1 . . . . . Propulsion 2 | . . . . . 1 1 . . . . . . . . . . Utility 12 | . . . . . 3 1 . 2 . . 1 . . 2 2 1 Weapon 1 | . . . . . . . . . . . . . . . . 1 Parts Attached 71 | 6 . . . 4 5 . 3 8 3 . 10 2 1 14 9 6 Power 9 | 1 . . . 1 . . . 1 1 . 2 . . 2 1 . Engine 3 | 1 . . . 1 . . . . . . 1 . . . . . Core 5 | . . . . . . . . 1 1 . 1 . . 1 1 . Reactor 1 | . . . . . . . . . . . . . . 1 . . Propulsion 19 | 2 . . . 2 1 . 3 . 1 . 4 2 . 1 1 2 Treads . | . . . . . . . . . . . . . . . . . Leg 18 | 2 . . . 2 1 . 3 . 1 . 4 2 . 1 . 2 Wheel . | . . . . . . . . . . . . . . . . . Hover 1 | . . . . . . . . . . . . . . . 1 . Flight . | . . . . . . . . . . . . . . . . . Utility 29 | 1 . . . . 4 . . 5 . . 3 . . 10 4 2 Device 18 | . . . . . 2 . . 3 . . 3 . . 6 2 2 Storage 1 | 1 . . . . . . . . . . . . . . . . Processor 6 | . . . . . 2 . . . . . . . . 2 2 . Hackware 2 | . . . . . . . . 1 . . . . . 1 . . Protection 2 | . . . . . . . . 1 . . . . . 1 . . Artifact . | . . . . . . . . . . . . . . . . . Weapon 14 | 2 . . . 1 . . . 2 1 . 1 . 1 1 3 2 Energy Gun 5 | 1 . . . 1 . . . 2 . . . . 1 . . . Energy Cannon 3 | . . . . . . . . . . . . . . 1 1 1 Ballistic Gun 1 | 1 . . . . . . . . . . . . . . . . Ballistic Cannon 5 | . . . . . . . . . 1 . 1 . . . 2 1 Launcher . | . . . . . . . . . . . . . . . . . Special Weapon . | . . . . . . . . . . . . . . . . . Impact Weapon . | . . . . . . . . . . . . . . . . . Slashing Weapon . | . . . . . . . . . . . . . . . . . Piercing Weapon . | . . . . . . . . . . . . . . . . . Special Melee Weapon . | . . . . . . . . . . . . . . . . . Unidentified Prototypes . | . . . . . . . . . . . . . . . . . Parts Lost 54 | . . . . 2 5 . . . 7 . 16 . . 1 11 12 Power 9 | . . . . 1 1 . . . 2 . 2 . . . 2 1 Propulsion 11 | . . . . . 1 . . . 1 . 6 . . 1 1 1 Utility 24 | . . . . . 1 . . . 3 . 6 . . . 7 7 Weapon 10 | . . . . 1 2 . . . 1 . 2 . . . 1 3 Highest Loss Streak 7 | . . . . 1 5 . . . 4 . 7 . . 1 5 6 To Critical Strikes 1 | . . . . . . . . . . . 1 . . . . . Average Backups 2 | 1 1 1 2 3 1 1 3 3 3 4 2 4 . 1 4 3 Power . | . 1 1 1 . . . . . . . . . . . 1 . Propulsion . | . . . . . . . 2 3 2 2 1 2 . . . . Utility . | . . . 1 2 1 1 1 . . 1 . . . . . 1 Weapon 1 | . . . . . . . . . 1 1 . 2 . 1 2 1 Tool/Special . | . . . . . . . . . . . . . . . . . Unused Backups 2 | . . . . . . . . . . . . . . 1 . 1 Power . | . . . . . . . . . . . . . . . . . Propulsion 1 | . . . . . . . . . . . . . . 1 . . Utility . | . . . . . . . . . . . . . . . . . Weapon 1 | . . . . . . . . . . . . . . . . 1 Tool/Special . | . . . . . . . . . . . . . . . . . Average Slot Usage (%) 65 | . 85 85 85 85 94 46 56 81 83 60 53 13 36 57 57 31 Engine 3 | . 14 14 14 14 7 . . . . . 3 . . . . . Core 1 | . . . . . . . . 3 1 . . . . . 3 . Leg 17 | . 28 28 28 28 25 15 25 26 21 20 19 1 17 14 7 2 Device 8 | . . . . . 16 7 7 14 16 6 3 . . 15 13 5 Storage 5 | . 14 14 14 14 9 7 7 6 6 6 4 . . . . . Processor 9 | . . . . . 16 15 15 13 13 13 11 11 11 10 13 12 Hackware 2 | . . . . . . . . 3 6 6 4 . . . 4 3 Energy Gun 4 | . 14 14 14 14 8 . . 11 5 . . . 4 . . . Energy Cannon 1 | . . . . . . . . . . . . . . 4 2 1 Ballistic Gun 3 | . 14 14 14 14 9 . . . . . . . . . . . Ballistic Cannon 2 | . . . . . . . . . 5 6 2 . 2 5 5 3 Peak Build Rating 89 | 6 6 6 6 12 23 15 25 54 56 30 45 36 45 89 87 70 Average Rating 41 | 4 6 6 6 9 20 15 22 45 45 30 33 10 41 69 72 45 On Entrance 25 | . 6 6 6 6 9 15 15 25 54 30 30 9 36 45 86 63 Naked Turns 9 | . . . . . . . . . . . . . . . . 9 Heaviest Build 56 | 11 11 11 11 15 13 6 6 29 38 14 27 . 13 52 56 43 Greatest Support 103 | 20 20 20 20 26 41 28 28 73 77 17 77 60 77 103 52 55 Greatest Overweight (x) 3 | . . . . . . . . . . . 1 . . . 3 2 Average Overweight (x) . | . . . . . . . . . . . . . . . . . Largest Inventory Capacity 8 | 8 8 8 8 8 8 8 8 8 8 8 8 5 5 5 5 5 Average Capacity 6 | 7 8 8 8 8 8 8 8 8 8 8 7 5 5 5 5 5 Most Carried 6 | 5 1 2 3 5 4 1 5 6 5 4 5 4 2 5 5 5 Average Carried 2 | 1 1 1 2 3 . 1 3 3 3 4 2 3 . 1 4 3 Final Capacity 8 | 8 8 8 8 8 8 8 8 8 8 8 5 5 5 5 5 5 Final Carried 5 | 1 1 2 3 5 1 1 4 4 4 4 4 2 . 4 4 3 Class Distribution -------------------- 44% | Mutant 33% | Hacker-Mutant 16% | Hacker-Skirmisher 3% | Scavenger-Skirmisher Dominant Class ---------------- Mutant | -10/Materials Mutant | -10/Mines Mutant | -10/Exiles Mutant | -9/Mines Scavenger-Skirmisher | -8/Materials Mutant | -7/Factory Mutant | -7/DSF Hacker-Mutant | -6/Factory Hacker-Mutant | -6/Lower Caves Hacker-Mutant | -6/Lower Caves Hacker-Mutant | -5/Factory Mutant | -5/Waste Mutant | -5/Factory Mutant | -4/Factory Hacker-Skirmisher | -3/Research Hacker-Mutant | -2/Research Resources | -11 -10 -10 -10 -9 -8 -7 -7 -6 -6 -6 -5 -5 -5 -4 -3 -2 ----------- Run | Yrd Mat Min Exi Min Mat Fac DSF Fac Low Low Fac Was Fac Fac Res Res Matter Collected 1566 | 122 . 55 . 203 115 . . 117 109 . . . 171 202 467 5 Remotely 151 | . . . . . . . . 117 34 . . . . . . . Salvage Created 1905 | . . . . 149 141 . . 105 316 40 45 . 92 442 575 . Parts 80 | . . . . 6 12 . . 7 6 . 1 . 3 18 27 . Haulers Intercepted . | . . . . . . . . . . . . . . . . . Recyclers Shooed 2 | . . . . . . . . . . . . . . 1 1 . Parts Field Recycled . | . . . . . . . . . . . . . . . . . Retrieved Matter . | . . . . . . . . . . . . . . . . . Parts Self-Destructed 5 | . . . . . . . . . 4 1 . . . . . . Prevented 4 | . . . . . . . . . 4 . . . . . . . Kills | -11 -10 -10 -10 -9 -8 -7 -7 -6 -6 -6 -5 -5 -5 -4 -3 -2 ------- Run | Yrd Mat Min Exi Min Mat Fac DSF Fac Low Low Fac Was Fac Fac Res Res Combat Hostiles Destroyed 44 | . . . . 7 4 . . 1 7 . 1 . 2 9 13 . Guns 16 | . . . . 7 4 . . 1 2 . . . 2 . . . Cannons 26 | . . . . . . . . . 5 . 1 . . 8 12 . Classes Destroyed 11 | . . . . 3 4 . . 1 . 1 . . . 1 1 . Builder 2 | . . . . . 1 . . . . . . . . . 1 . Recycler 1 | . . . . . . . . . . . . . . 1 . . Watcher 2 | . . . . . 1 . . 1 . . . . . . . . Swarmer 8 | . . . . . 3 . . . 1 . . . . 4 . . Grunt 11 | . . . . 2 . . . . 5 . . . 2 2 . . Duelist 2 | . . . . 1 . . . . 1 . . . . . . . Sentry 6 | . . . . . . . . 1 . . 1 . . 1 3 . Specialist 2 | . . . . . . . . . . . . . . . 2 . Hunter 1 | . . . . . 1 . . . . . . . . . . . Programmer 10 | . . . . . . . . . . . . . . 2 8 . Packrat 1 | . . . . . . . . . . 1 . . . . . . Assembled 4 | . . . . 4 . . . . . . . . . . . . Best Kill Streak 5 | . . . . 3 3 . . 2 3 . 1 . 1 5 5 . Combat Bots Only 5 | . . . . 3 3 . . 1 3 . 1 . 1 4 5 . Max Kills in Single Turn 2 | . . . . 1 1 . . 1 1 1 1 . 1 2 2 . Gunslinging . | . . . . . . . . . . . . . . . . . Exploded . | . . . . . . . . . . . . . . . . . Melee . | . . . . . . . . . . . . . . . . . Uniques/NPCs Destroyed . | . . . . . . . . . . . . . . . . . Combat | -11 -10 -10 -10 -9 -8 -7 -7 -6 -6 -6 -5 -5 -5 -4 -3 -2 -------- Run | Yrd Mat Min Exi Min Mat Fac DSF Fac Low Low Fac Was Fac Fac Res Res Hostile Shots Fired 976 | . . . . 31 102 . 3 21 100 . 224 . 26 57 162 250 Missed 358 | . . . . 3 31 . 2 9 44 . 91 . 13 19 59 87 Hits 618 | . . . . 28 71 . 1 12 56 . 133 . 13 38 103 163 Melee 6 | . . . . 2 . . . . 3 . 1 . . . . . Projectile 612 | . . . . 26 71 . 1 12 53 . 132 . 13 38 103 163 Critical Strikes 21 | . . . . . 1 . . . 3 . 7 . 1 1 5 3 Damage Taken 8876 | . . . . 288 642 . 44 104 844 . 1968 . 192 554 1614 2626 Core 2900 | . . . . 95 195 . . . 115 . 669 . 15 83 274 1454 Absorbed by Shields 50 | . . . . . . . . . . . 50 . . . . . Ignored by Resistances 2612 | . . . . 84 193 . 12 32 224 . 550 . 52 179 564 722 Core Remaining (%) 76 | 100 . . . 62 64 . 100 . . 86 . . 31 92 78 . Volleys Fired 180 | . . . . 24 25 . . 4 19 3 9 . 17 24 50 5 Largest 3 | . . . . 2 2 . . 2 2 1 2 . 2 2 2 3 Hottest 206 | . . . . 95 60 . . 120 120 44 104 . 102 152 167 206 Shots Fired 309 | . . . . 46 36 . . 8 27 3 12 . 29 40 96 12 Gun 121 | . . . . 46 36 . . 8 11 . 3 . 17 . . . Cannon 188 | . . . . . . . . . 16 3 9 . 12 40 96 12 Launcher . | . . . . . . . . . . . . . . . . . Special . | . . . . . . . . . . . . . . . . . Kinetic 178 | . . . . 24 25 . . . 16 3 9 . 12 18 61 10 Thermal 92 | . . . . 22 11 . . . . . . . . 22 35 2 Explosive . | . . . . . . . . . . . . . . . . . Electromagnetic 39 | . . . . . . . . 8 11 . 3 . 17 . . . Robot Hit Streak 17 | . . . . 16 7 . . 6 9 6 8 . 16 17 9 2 Robot Miss Streak 5 | . . . . 1 3 . . 1 3 2 3 . 1 3 2 5 Penetration Max 1 | . . . . . . . . . . . . . . 1 1 . Secondary Targets 2 | . . . . 1 1 . . . . . . . . . . . Max Gunslinging Chain 1 | . . . . 1 1 . . . . . . . . . . . Shots Hit Robots 204 | . . . . 34 21 . . 6 25 3 7 . 22 19 63 4 Core Hits 114 | . . . . 12 11 . . 4 28 4 9 . 6 11 27 2 Critical Kills 2 | . . . . . . . . . . . . . . 1 1 . Critical Parts Destroyed . | . . . . . . . . . . . . . . . . . Critical Strikes 14 | . . . . . . . . 1 . . 1 . 2 3 6 1 Meltdown 2 | . . . . . . . . . . . . . . 1 1 . Blast 11 | . . . . . . . . . . . 1 . 2 2 5 1 Corrupt 1 | . . . . . . . . 1 . . . . . . . . Melee Attacks . | . . . . . . . . . . . . . . . . . Impact . | . . . . . . . . . . . . . . . . . Slashing . | . . . . . . . . . . . . . . . . . Piercing . | . . . . . . . . . . . . . . . . . Sneak Attacks . | . . . . . . . . . . . . . . . . . Combat Hostiles . | . . . . . . . . . . . . . . . . . Follow-up Attacks . | . . . . . . . . . . . . . . . . . Damage Inflicted 6293 | . . 11 . 424 220 . . 137 712 54 318 . 565 884 2844 124 Guns 1347 | . . . . 424 220 . . 137 233 . 37 . 296 . . . Cannons 4788 | . . . . . . . . . 477 54 176 . 269 868 2822 122 Explosions 101 | . . . . . . . . . . . 101 . . . . . Melee . | . . . . . . . . . . . . . . . . . Ramming 57 | . . 11 . . . . . . 2 . 4 . . 16 22 2 Kinetic 3952 | . . . . 246 154 . . . 477 54 176 . 269 457 1997 122 Thermal 1581 | . . . . 178 66 . . . . . 101 . . 411 825 . Explosive . | . . . . . . . . . . . . . . . . . Electromagnetic 703 | . . . . . . . . 137 233 . 37 . 296 . . . Impact . | . . . . . . . . . . . . . . . . . Slashing . | . . . . . . . . . . . . . . . . . Piercing . | . . . . . . . . . . . . . . . . . Highest Corruption 8 | . . . . . . . . 1 1 1 4 4 4 2 8 . Average Corruption 3 | . . . . . . . . 1 1 1 1 4 4 2 4 . Corruption Purged . | . . . . . . . . . . . . . . . . . Corruption Blocked . | . . . . . . . . . . . . . . . . . Effects 40 | . . . . . . . . . 1 . . 1 5 2 31 . Message Errors 14 | . . . . . . . . . 1 . . . 2 1 10 . Matter Fused 8 | . . . . . . . . . . . . 1 2 1 4 . Heat Flow Errors 6 | . . . . . . . . . . . . . . . 6 . Energy Discharges 2 | . . . . . . . . . . . . . . . 2 . Parts Rejected 1 | . . . . . . . . . . . . . . . 1 . Parts Fused 1 | . . . . . . . . . . . . . . . 1 . Data Loss (minor) 3 | . . . . . . . . . . . . . . . 3 . Data Loss (major) 2 | . . . . . . . . . . . . . 1 . 1 . Misfires 2 | . . . . . . . . . . . . . . . 2 . Weapon Failures 1 | . . . . . . . . . . . . . . . 1 . Overload Shots . | . . . . . . . . . . . . . . . . . Overflow Damage 260 | . . . . . . . . . . 1 24 . 29 30 176 . Projectiles 236 | . . . . . . . . . . 1 . . 29 30 176 . Explosions 24 | . . . . . . . . . . . 24 . . . . . Melee . | . . . . . . . . . . . . . . . . . Knockbacks 26 | . . . . . . . . . 5 . . . 2 2 17 . Impact . | . . . . . . . . . . . . . . . . . Kinetic 24 | . . . . . . . . . 5 . . . 2 2 15 . Secondary 2 | . . . . . . . . . . . . . . . 2 . Self-Inflicted Damage 96 | . . . . . . . . . . . 54 . . . 42 . Shots 2 | . . . . . . . . . . . 1 . . . 1 . Rammed 1 | . . . . . . . . . . . . . . . 1 . Targets Rammed 12 | . . 1 . . . . . 1 1 . 1 . . 1 6 1 Kicked 11 | . . 1 . . . . . 1 1 . 1 . . 1 5 1 Crushed . | . . . . . . . . . . . . . . . . . Highest Temperature 228 | . . . . 66 2 . . 42 54 . 2 . 21 228 223 . Average Temperature 54 | . . . . 30 2 . . 27 21 . 2 . 5 65 74 . Received Heat Transfer 1973 | . . . . 90 270 . . 39 354 . 641 . 135 135 282 27 Siege Activations . | . . . . . . . . . . . . . . . . . Martial Activations . | . . . . . . . . . . . . . . . . . Shielding Activations . | . . . . . . . . . . . . . . . . . Robots Disrupted . | . . . . . . . . . . . . . . . . . Combat Hostiles . | . . . . . . . . . . . . . . . . . Robots Corrupted . | . . . . . . . . . . . . . . . . . Combat Hostiles . | . . . . . . . . . . . . . . . . . Parts Fried 1 | . . . . . . . . 1 . . . . . . . . Impact Corruptions . | . . . . . . . . . . . . . . . . . Robots Melted 2 | . . . . . . . . . . . . . . 1 1 . Combat Hostiles 2 | . . . . . . . . . . . . . . 1 1 . Parts Melted 5 | . . . . . . . . . . . . . . . 5 . Heat Transferred 1734 | . . . . 387 150 . . . . . 50 . . 407 740 . Parts Sabotaged . | . . . . . . . . . . . . . . . . . Parts Stolen . | . . . . . . . . . . . . . . . . . Parts Stripped . | . . . . . . . . . . . . . . . . . Power Chain Reactions . | . . . . . . . . . . . . . . . . . Alert | -11 -10 -10 -10 -9 -8 -7 -7 -6 -6 -6 -5 -5 -5 -4 -3 -2 ------- Run | Yrd Mat Min Exi Min Mat Fac DSF Fac Low Low Fac Was Fac Fac Res Res Maximum Alert Level 1 | . . . . . . . . . . . 1 . . . . . Low Security (%) 93 | 100 100 100 . 100 100 100 100 100 . . 61 100 100 100 100 100 Level 1 6 | . . . . . . . . . . . 38 . . . . . Level 2 . | . . . . . . . . . . . . . . . . . Level 3 . | . . . . . . . . . . . . . . . . . Level 4 . | . . . . . . . . . . . . . . . . . Level 5 . | . . . . . . . . . . . . . . . . . High Security . | . . . . . . . . . . . . . . . . . Max Security . | . . . . . . . . . . . . . . . . . Peak Influence 350 | . . . . 50 30 4 16 42 . . 350 92 44 89 112 50 Initial 92 | . . . . . . 3 1 7 . . . 92 44 . 2 18 Average 34 | . . . . 13 7 1 1 6 . . 133 84 14 20 22 7 Influence Increases 2075 | . . . . 70 102 4 15 52 240 . 761 . 52 252 440 87 Destroy 0b10 Robot/C 800 | . . . . 60 80 . . 20 140 . 20 . 40 180 260 . Destroy 0b10 Robot/NC 25 | . . . . . 10 . . 5 . . . . . 5 5 . Destroy Leader 174 | . . . . 10 12 . . 12 10 . 10 . 10 30 80 . Successful Hack 25 | . . . . . . 4 . . . . . . . . 21 . Disable Machine 36 | . . . . . . . . . . . 9 . . 9 9 9 Destroy Structure 160 | . . . . . . . . . . . 62 . 2 28 50 18 Partial Spotted 15 | . . . . . . . . 15 . . . . . . . . Lose Combat Pursuer 840 | . . . . . . . 15 . 90 . 660 . . . 15 60 Influence Decreases 2065 | . . . . 70 92 10 3 46 242 20 444 245 124 245 409 115 Entered New Map 314 | . . . . . . 7 3 9 11 6 . 225 28 . 5 20 Time Decay 1387 | . . . . 60 62 3 . 37 170 14 289 20 96 235 344 57 Lost Part 364 | . . . . 10 30 . . . 61 . 155 . . 10 60 38 Squads Dispatched 17 | . . . . . 2 . 1 . . . 3 . 1 2 8 . Investigation 2 | . . . . . 1 . . . . . 1 . . . . . Extermination 6 | . . . . . . . . . . . 1 . . 2 3 . Reinforcement 7 | . . . . . 1 . 1 . . . 1 . 1 . 3 . Assault . | . . . . . . . . . . . . . . . . . Garrison 2 | . . . . . . . . . . . . . . . 2 . Intercept . | . . . . . . . . . . . . . . . . . Searches Triggered . | . . . . . . . . . . . . . . . . . Construction Impeded 2 | . . . . . . . . . . . . . 1 . 1 . Haulers Reinforced . | . . . . . . . . . . . . . . . . . Active Scanning Responses . | . . . . . . . . . . . . . . . . . Cargo Convoy Interrupts . | . . . . . . . . . . . . . . . . . Stealth | -11 -10 -10 -10 -9 -8 -7 -7 -6 -6 -6 -5 -5 -5 -4 -3 -2 --------- Run | Yrd Mat Min Exi Min Mat Fac DSF Fac Low Low Fac Was Fac Fac Res Res Distress Signals . | . . . . . . . . . . . . . . . . . Communications Jammed . | . . . . . . . . . . . . . . . . . Distress Signals . | . . . . . . . . . . . . . . . . . Times Spotted 143 | . . . . 7 12 . 2 5 14 . 47 5 7 9 18 17 Peak Tracking Total 16 | . . . . 3 8 . 3 4 9 . 9 5 5 4 5 16 Tactical Retreats 27 | . . . . . . . 1 . 4 . 20 . . . 1 1 Traps | -11 -10 -10 -10 -9 -8 -7 -7 -6 -6 -6 -5 -5 -5 -4 -3 -2 ------- Run | Yrd Mat Min Exi Min Mat Fac DSF Fac Low Low Fac Was Fac Fac Res Res Traps Triggered 6 | . . . . . . . . 1 . . 4 . . . . 1 Indirectly . | . . . . . . . . . . . . . . . . . Trap Hack Attempts . | . . . . . . . . . . . . . . . . . Triggered . | . . . . . . . . . . . . . . . . . Disarmed . | . . . . . . . . . . . . . . . . . Reprogrammed . | . . . . . . . . . . . . . . . . . Reused . | . . . . . . . . . . . . . . . . . Traps Extracted . | . . . . . . . . . . . . . . . . . Installed . | . . . . . . . . . . . . . . . . . Triggered . | . . . . . . . . . . . . . . . . . Machines | -11 -10 -10 -10 -9 -8 -7 -7 -6 -6 -6 -5 -5 -5 -4 -3 -2 ---------- Run | Yrd Mat Min Exi Min Mat Fac DSF Fac Low Low Fac Was Fac Fac Res Res Machines Disabled 4 | . . . . . . . . . . . 1 . . 1 1 1 Max in Single Turn 1 | . . . . . . . . . . . 1 . . 1 1 1 Machines Repaired . | . . . . . . . . . . . . . . . . . Machines Dismantled . | . . . . . . . . . . . . . . . . . Machines Sabotaged . | . . . . . . . . . . . . . . . . . Overloaded Fab Kills . | . . . . . . . . . . . . . . . . . Hacking | -11 -10 -10 -10 -9 -8 -7 -7 -6 -6 -6 -5 -5 -5 -4 -3 -2 --------- Run | Yrd Mat Min Exi Min Mat Fac DSF Fac Low Low Fac Was Fac Fac Res Res Machines Accessed 10 | . . . 5 . . 1 . . . . 1 . . 2 1 . Terminals 3 | . . . . . . 1 . . . . 1 . . . 1 . Fabricators 1 | . . . . . . . . . . . . . . 1 . . Repair Stations 1 | . . . . . . . . . . . . . . 1 . . Recycling Units . | . . . . . . . . . . . . . . . . . Scanalyzers . | . . . . . . . . . . . . . . . . . Garrison Access . | . . . . . . . . . . . . . . . . . Total Hacks 56 | . . . 50 . . 1 . . . . 1 . . 2 2 . Successful 52 | . . . 50 . . 1 . . . . . . . . 1 . Failed 4 | . . . . . . . . . . . 1 . . 2 1 . Catastrophic 1 | . . . . . . . . . . . . . . 1 . . Database Lockouts . | . . . . . . . . . . . . . . . . . Manual 1 | . . . 1 . . . . . . . . . . . . . Terminals 4 | . . . . . . 1 . . . . 1 . . . 2 . Fabricators 1 | . . . . . . . . . . . . . . 1 . . Repair Stations 1 | . . . . . . . . . . . . . . 1 . . Recycling Units . | . . . . . . . . . . . . . . . . . Scanalyzers . | . . . . . . . . . . . . . . . . . Garrison Access . | . . . . . . . . . . . . . . . . . Terminal Hacks 52 | . . . 50 . . 1 . . . . . . . . 1 . Record 49 | . . . 49 . . . . . . . . . . . . . Open DSF 1 | . . . . . . 1 . . . . . . . . . . Recall Assault 1 | . . . . . . . . . . . . . . . 1 . Proto ID Catalog 1 | . . . 1 . . . . . . . . . . . . . Fabricator Hacks . | . . . . . . . . . . . . . . . . . Repair Station Hacks . | . . . . . . . . . . . . . . . . . Recycling Unit Hacks . | . . . . . . . . . . . . . . . . . Scanalyzer . | . . . . . . . . . . . . . . . . . Garrison Access Hacks . | . . . . . . . . . . . . . . . . . Unauthorized Hacks . | . . . . . . . . . . . . . . . . . Terminals . | . . . . . . . . . . . . . . . . . Fabricators . | . . . . . . . . . . . . . . . . . Repair Stations . | . . . . . . . . . . . . . . . . . Recycling Units . | . . . . . . . . . . . . . . . . . Scanalyzers . | . . . . . . . . . . . . . . . . . Garrison Access . | . . . . . . . . . . . . . . . . . Data Cores Recovered . | . . . . . . . . . . . . . . . . . Used . | . . . . . . . . . . . . . . . . . Hacking Detections 5 | . . . . . . 1 . . . . 1 . . 2 1 . Full Trace Events . | . . . . . . . . . . . . . . . . . Feedback Events . | . . . . . . . . . . . . . . . . . Feedback Blocked . | . . . . . . . . . . . . . . . . . Robot Schematics Acquired . | . . . . . . . . . . . . . . . . . Robots Built . | . . . . . . . . . . . . . . . . . Authchips . | . . . . . . . . . . . . . . . . . Time . | . . . . . . . . . . . . . . . . . Total Robot Build Rating . | . . . . . . . . . . . . . . . . . Part Schematics Acquired . | . . . . . . . . . . . . . . . . . Parts Built . | . . . . . . . . . . . . . . . . . Authchips . | . . . . . . . . . . . . . . . . . Time . | . . . . . . . . . . . . . . . . . Total Part Build Rating . | . . . . . . . . . . . . . . . . . Parts Repaired . | . . . . . . . . . . . . . . . . . Time . | . . . . . . . . . . . . . . . . . Parts Recycled . | . . . . . . . . . . . . . . . . . Recycled Matter . | . . . . . . . . . . . . . . . . . Retrieved Matter . | . . . . . . . . . . . . . . . . . Retrieved Components . | . . . . . . . . . . . . . . . . . Parts Scanalyzed . | . . . . . . . . . . . . . . . . . Part Schematics Acquired . | . . . . . . . . . . . . . . . . . Parts Damaged . | . . . . . . . . . . . . . . . . . Bothacking | -11 -10 -10 -10 -9 -8 -7 -7 -6 -6 -6 -5 -5 -5 -4 -3 -2 ------------ Run | Yrd Mat Min Exi Min Mat Fac DSF Fac Low Low Fac Was Fac Fac Res Res Used RIF Installer . | . . . . . . . . . . . . . . . . . Robots Hacked . | . . . . . . . . . . . . . . . . . Non-combat . | . . . . . . . . . . . . . . . . . Combat . | . . . . . . . . . . . . . . . . . Robot Hacks Applied . | . . . . . . . . . . . . . . . . . Relay Couplers Released . | . . . . . . . . . . . . . . . . . Fabnet Peak Effective % . | . . . . . . . . . . . . . . . . . Robots Rewired . | . . . . . . . . . . . . . . . . . Allies Hacked . | . . . . . . . . . . . . . . . . . Hacks Repelled . | . . . . . . . . . . . . . . . . . Allies | -11 -10 -10 -10 -9 -8 -7 -7 -6 -6 -6 -5 -5 -5 -4 -3 -2 -------- Run | Yrd Mat Min Exi Min Mat Fac DSF Fac Low Low Fac Was Fac Fac Res Res Total Allies . | . . . . . . . . . . . . . . . . . Largest Group . | . . . . . . . . . . . . . . . . . Highest-Rated Group . | . . . . . . . . . . . . . . . . . Highest-Rated Ally . | . . . . . . . . . . . . . . . . . Total Orders . | . . . . . . . . . . . . . . . . . Ally Attacks . | . . . . . . . . . . . . . . . . . Total Damage . | . . . . . . . . . . . . . . . . . Kills . | . . . . . . . . . . . . . . . . . Allies Corrupted . | . . . . . . . . . . . . . . . . . Allies Melted . | . . . . . . . . . . . . . . . . . Intel | -11 -10 -10 -10 -9 -8 -7 -7 -6 -6 -6 -5 -5 -5 -4 -3 -2 ------- Run | Yrd Mat Min Exi Min Mat Fac DSF Fac Low Low Fac Was Fac Fac Res Res Active Infowar (turns) 4401 | . . . . . 238 36 85 331 174 81 773 48 272 760 1339 264 Sensors 1063 | . . . . . . . . . . . . . . 9 1046 8 Terrain 212 | . . . . . 212 . . . . . . . . . . . T.N.C. 4390 | . . . . . 235 36 85 331 174 81 773 48 272 760 1339 256 Jamming 4 | . . . . . . . . . . . . . . . . 4 ECM 1 | . . . . . . . . . . . . . . 1 . . Robot Analysis Total . | . . . . . . . . . . . . . . . . . Derelict Logs Recovered . | . . . . . . . . . . . . . . . . . Drone Launches . | . . . . . . . . . . . . . . . . . Drone Recoveries . | . . . . . . . . . . . . . . . . . Exploration | -11 -10 -10 -10 -9 -8 -7 -7 -6 -6 -6 -5 -5 -5 -4 -3 -2 ------------- Run | Yrd Mat Min Exi Min Mat Fac DSF Fac Low Low Fac Was Fac Fac Res Res Turns Passed 6096 | 46 34 304 864 209 238 36 85 331 403 81 773 48 272 760 1339 273 Spaces Moved 3944 | 33 29 252 695 105 141 31 58 236 228 58 537 86 110 501 618 226 Core 187 | 8 . . . . . . . . . . 2 84 . . 3 90 Treads . | . . . . . . . . . . . . . . . . . Legs 3582 | 25 29 252 695 105 141 31 58 236 228 58 535 2 110 501 491 85 Wheels . | . . . . . . . . . . . . . . . . . Hover 175 | . . . . . . . . . . . . . . . 124 51 Flight . | . . . . . . . . . . . . . . . . . Fastest Speed 50 | 50 120 120 120 120 120 120 120 127 130 130 100 50 135 120 120 50 Average Speed 122 | 103 120 120 120 120 120 120 127 128 130 130 127 52 138 126 130 99 Slowest Speed 200 | 120 120 120 120 120 120 120 130 130 130 130 200 140 140 135 200 190 Overloaded Moves . | . . . . . . . . . . . . . . . . . Propulsion Burnouts . | . . . . . . . . . . . . . . . . . Robots Hopped . | . . . . . . . . . . . . . . . . . Potential Cave-ins . | . . . . . . . . . . . . . . . . . Cave-ins Triggered . | . . . . . . . . . . . . . . . . . Exploration Rate (%) 26 | 4 12 60 92 17 19 1 42 7 46 13 18 68 3 15 19 10 Regions Visited 16 Branch Regions 5 Pre-discovered Areas 1 | . . . 1 . . . . . . . . . . . . . Known Exits Taken 3 | . . . . . . 1 . . . . . . . 1 1 . Unknown Exits Taken 10 | 1 1 1 1 1 1 . . 1 1 1 . . 1 . . . Scrap Searched 3 | . . 1 . 1 . . . . 1 . . . . . . . Spaces Dug 14 | . . . . . . . . . . . 1 . . 8 5 . Terrain Destroyed 86 | . . . . 3 . . . . . . 33 . 1 15 28 6 Melee . | . . . . . . . . . . . . . . . . . Projectile 54 | . . . . 3 . . . . . . 1 . 1 15 28 6 AOE 32 | . . . . . . . . . . . 32 . . . . . Terrain Rammed . | . . . . . . . . . . . . . . . . . Walls Destroyed . | . . . . . . . . . . . . . . . . . Machines Disabled . | . . . . . . . . . . . . . . . . . Actions | -11 -10 -10 -10 -9 -8 -7 -7 -6 -6 -6 -5 -5 -5 -4 -3 -2 --------- Run | Yrd Mat Min Exi Min Mat Fac DSF Fac Low Low Fac Was Fac Fac Res Res Total 4899 | 45 28 253 725 140 174 30 68 257 307 60 614 89 201 589 1053 266 Wait 601 | . . . 30 . . . . . 55 . 44 . 73 27 359 13 Move 3929 | 32 28 251 694 104 140 30 57 235 227 57 537 85 109 500 617 226 Hop . | . . . . . . . . . . . . . . . . . Pick Up 74 | 7 . 1 1 5 2 . 6 8 2 . 9 1 . 18 8 6 Fast Attach . | . . . . . . . . . . . . . . . . . Attach 69 | 6 . . . 2 5 . 2 8 2 . 11 3 2 12 7 9 Detach 7 | . . . . . . . . . . . 2 . . 1 1 3 Swap 14 | . . . . 4 1 . 2 . 1 . 1 . . 2 3 . Drop 13 | . . . . 1 1 . 1 1 . . . . . 4 2 3 Fire 180 | . . . . 24 25 . . 4 19 3 9 . 17 24 50 5 Melee . | . . . . . . . . . . . . . . . . . Ram 1 | . . . . . . . . . . . . . . . 1 . Kick 11 | . . 1 . . . . . 1 1 . 1 . . 1 5 1 Crush . | . . . . . . . . . . . . . . . . . Escape Stasis . | . . . . . . . . . . . . . . . . . Rewire . | . . . . . . . . . . . . . . . . . Trap . | . . . . . . . . . . . . . . . . . Miscellaneous . | . . . . . . . . . . . . . . . . . Route ------- -11/Scrapyard -10/Materials -10/Mines -10/Exiles (discovered 2 exits: [*Min x2]) -9/Mines -8/Materials -7/Factory -7/DSF -6/Factory -6/Lower Caves -6/Lower Caves -5/Factory -5/Waste -5/Factory -4/Factory -3/Research (discovered 2 exits: *Res / *Tes) -2/Research History --------- Turn | Location | Event 9 | -11/Scrapyard | Discovered new exit (range 15) 47 | -11/Scrapyard | Entered Materials 62 | -10/Materials | Discovered new exit (range 16) 81 | -10/Materials | Entered Mines 314 | -10/Mines | Build established: Mutant 378 | -10/Mines | Deemed a non-threat by the Exiles lab entrance 379 | -10/Mines | Discovered new exit (range 5) 385 | -10/Mines | Entered Exiles 412 | -10/Exiles | Discovered new exit (range 15) 427 | -10/Exiles | Met 8R-AWN 459 | -10/Exiles | Met EX-HEX 504 | -10/Exiles | Met EX-DEC 580 | -10/Exiles | Learned location of Zion (-6) 613 | -10/Exiles | Discovered new exit (range 14) 699 | -10/Exiles | Met EX-BIN 726 | -10/Exiles | Aligned with FarCom system 727 | -10/Exiles | Given EX-Vault access code 784 | -10/Exiles | Opened EX-Vault 791 | -10/Exiles | Found Modified TNC 815 | -10/Exiles | Warned to stay clear of 0b10 Research branches 1044 | -10/Exiles | Visited The Gauntlet 1249 | -10/Exiles | Left Exiles lab with Modified TNC 1249 | -10/Exiles | Entered Mines 1250 | -9/Mines | Assembled infested the area 1262 | -9/Mines | Met a Derelict bent on vengeance 1449 | -9/Mines | Discovered new exit (range 5) 1458 | -9/Mines | Entered Materials 1458 | -8/Materials | Evolved 4 slots: Propulsion x1, Utility x3 1587 | -8/Materials | Met 7R-MNS 1688 | -8/Materials | Discovered new exit (range 7) 1696 | -8/Materials | Entered Factory 1696 | -7/Factory | Evolved 2 slots: Propulsion x1, Utility x1 1723 | -7/Factory | Lost 5 parts (1p1n1u2w) 1731 | -7/Factory | Identified exit to DSF 1732 | -7/Factory | Entered DSF 1785 | -7/DSF | Additional patrols routed to DSF 1796 | -7/DSF | Discovered new exit (range 16) 1817 | -7/DSF | Entered Factory 1817 | -6/Factory | Evolved 2 slots: Utility x2 2127 | -6/Factory | Discovered new exit (range 16) 2148 | -6/Factory | Entered Lower Caves 2216 | -6/Lower Caves | Build established: Hacker-Mutant 2345 | -6/Lower Caves | Attracted the attention of an 0b10 outpost 2448 | -6/Lower Caves | Spotted B-75 Beast 2479 | -6/Lower Caves | Acquired the password to a Derelict Tinkerer's latest research 2519 | -6/Lower Caves | Lost 4 parts (1p2u1w) 2542 | -6/Lower Caves | Discovered new exit (range 8) 2551 | -6/Lower Caves | Entered another Lower Caves area 2612 | -6/Lower Caves | Discovered new exit (range 15) 2632 | -6/Lower Caves | Entered Factory 2632 | -5/Factory | Evolved 2 slots: Power x1, Utility x1 3372 | -5/Factory | Core integrity fell below 50% 3396 | -5/Factory | Lost 7 parts (4n3u) 3405 | -5/Factory | Manually triggered Chute Trap 3405 | -5/Factory | Sucked down chute 3405 | -5/Factory | Entered Waste 3419 | -5/Waste | Spotted C-40 Crusher 3420 | -5/Waste | Spotted C-40 Crusher 3422 | -5/Waste | Spotted C-40 Crusher 3427 | -5/Waste | Spotted C-40 Crusher 3441 | -5/Waste | Discovered new exit (range 13) 3441 | -5/Waste | Spotted C-40 Crusher 3453 | -5/Waste | Entered Factory 3656 | -5/Factory | Build established: Mutant 3705 | -5/Factory | Discovered new exit (range 16) 3725 | -5/Factory | Entered another Factory area 3725 | -4/Factory | Evolved 2 slots: Utility x2 4359 | -4/Factory | Spotted B-86 Titan 4462 | -4/Factory | Discovered new exit (range 15) 4484 | -4/Factory | Identified exit to Research 4485 | -4/Factory | Entered Research 4485 | -3/Research | Evolved 2 slots: Utility x2 4606 | -3/Research | Garrison activated, responded to threat 4653 | -3/Research | Discovered new exit (range 16) 4714 | -3/Research | Identified exit to Testing 4776 | -3/Research | Build established: Hacker-Skirmisher 4931 | -3/Research | Lost 4 parts (1p2u1w) 4946 | -3/Research | Garrison activated, responded to threat 5577 | -3/Research | Lost 5 parts (1p1n3u) 5808 | -3/Research | Discovered new exit (range 9) 5823 | -3/Research | Identified exit to Research 5824 | -3/Research | Build established: Hacker-Mutant 5824 | -3/Research | Entered another Research area 5824 | -2/Research | Evolved 2 slots: Utility x1, Weapon x1 5994 | -2/Research | Lost 6 parts (1p2u3w) 6048 | -2/Research | Spotted B-90 Cyclops 6049 | -2/Research | Core integrity fell below 50% 6054 | -2/Research | Lost 3 parts (1n2u) 6080 | -2/Research | Core integrity fell below 20% 6095 | -2/Research | Spotted B-90 Cyclops 6097 | -2/Research | Destroyed by S-43 Plague with Heavy Machine Gun Last Messages --------------- 06076_ Penetrated by Slug. 06077_ Slug penetrates Wall. 06078_ Imp. Hacking Suite destroyed. 06079_ Slug penetrates Wall. 06079_ Penetrated by Slug. 06080_ Triggered Blade Trap. 06080_ Massive razor-sharp blades shoot up from within the floor. 06080_ Adv. Signal Interpreter severed. 06080_ Modified TNC severed. 06081_ Slug penetrates Wall. 06081_ Penetrated by Slug. 06082_ Slug penetrates Wall. 06087_ Penetrated by Slug. 06089_ Adv. Transmission Jammer destroyed. 06090_ K-01 Serf cleans the Ion Accelerator. 06092_ Adv. Sensor Array destroyed. 06093_ Slug penetrates Ion Accelerator. 06096_ Slug penetrates Wall. 06096_ Penetrated by Slug. Map ----- +----------------------------------------------------+ | ?????????????????????????????????????????????????? | | ?????????????????????????????????????????????????? | | ?????????????????????????????????????????????????? | | ?????????????????????????????????????????????????? | | ?????????????????????????????????????????????????? | | ?????????????????????????????????????????????????? | | ?????????????????????????????????????????????????? | | ?????????????????????????????????????????????????? | | ?????????????????????????????????????????????????? | | ?????????????????????????????????????????????????? | | ?????????????????????????????????????????????????? | | ?????????????????????????????????????????????????? | | ?????????????????????????????????????????????????? | | ?????????????????????????????????????????????????? | | ?????????????????????????????????????????????????? | | ??????????????????????#?#####????????????????????? | | ???????????????Y????? #????????????????????? | | ?????????????????????? #?????## ????????????? | | ?????????????????????? #???? ???????????? | | ??????????????????????" " #??? ???????????? | | ???????????????????????R"" ??? ??????????? | | ???????????????????????""" ??? ! !! ??????????? | | ???????????????????????? ??? !! ?????????? | | ???????????????????????? ?? "????????? | | ??????????????# #########;### #????????? | | ?????????? # @ #????????? | | ?????????? w + #????????? | | ?????????? # #????????? | | ??????????????+ s #????????? | | ??????????????###########s### ;BB####?????????? | | ???????????????????# s # #BB#????????????? | | ???????????????????# ss #? #??#????????????? | | ???????????????????#! """ #?? ??????????????? | | ???????????????????# """h #??? ?????????????? | | ???????????????????# """kh #???? ???????????? | | ???????????????????# """ #????? ???????????? | | ???????????????????# """ #??????##????????????? | | ???????????????????# !#????????????????????? | | ???????????????????# #????????????????????? | | ???????????????????#####+####????????????????????? | | ???????????????????????# #???????????????????????? | | ???????????????????????# #???????????????????????? | | ????????????# ###### #???????????????????????? | | ????????????# " #???????????????????????? | | ????????????# #### #???????????????????????? | | ?????????????????????# ##??????????????????????? | | ?????????????????????# #??????????????????????? | | ???????# ???????????# #??????????????????????? | | ???????# !######### #??????????????????????? | | ???????# " #??????????????????????? | +----------------------------------------------------+ Best States ------------- Heat Dissipation 87 Energy Generation 35 Energy Capacity 385 Matter Stores 300 Matter Capacity 300 Sight Range 16 Robot Scan Range 16 Terrain Scan Range 16 Terrain Scan Density 210 ECM Strength 2 Additional Mass Support 9 Armor Coverage 225 Resistance: KI 45 Resistance: TH 20 Resistance: EX 20 Resistance: EM 20 Resistance: I 20 Resistance: S 20 Resistance: P 20 Evasion (%) 70 Target Analysis 8 Armor Integrity Analysis 40 Matter Filtering 30 Offensive Hacking 22 Item Schematics ----------------- None Robot Schematics ------------------ None Fabricated ------------ Nothing Repaired ---------- Nothing Alien Tech Used ----------------- None Achievements -------------- Leap Before You Look Challenges ------------ None Game ------ Seed LegInsulatedRailcannon Manual? 0 Play Time 01:01:37 Cumulative 34.2 hours Start 2025.06.07 @ 00:18:16 End 2025.06.07 @ 01:17:58 Sessions 1 Manual Loads 0 Difficulty Adventurer Special Mode None Game No. 39 Rogue 0 Adventurer 5 Explorer 34 Win Type - Total 1 Types 1/0/0/0/0/0/0/0/0/0 Lore% 14 Gallery% 39 Achievement% 37 Wizard Run 0 Options --------- Layout 1 ASCII 0 Keyboard 0 Movement Mouse Keybinds 0 Fullscreen 1 Font 42/SmallcapsGlow Map View 52x41 Zoom Use 0% Tactical HUD 1 Map Filters NONE Filters NONE Steam 1 RUN: 480887b5-6813-41a9-800f-af77c850fe23